fUSD/lending_fUSD_20240910
["ID","MTS","AMOUNT","RATE_DAILY","PERIOD"]
[337667063,1725933046866,-151.0,0.00012599,2]
[337667065,1725933046876,-151.0,0.00012599,2]
[337667067,1725933046886,-151.0,0.00012599,2]
[337667069,1725933046896,-151.0,0.00012599,2]
[337667071,1725933046905,-973.104124,0.00012599,2]
[337667073,1725933046915,-973.104124,0.00012599,2]
[337667075,1725933046924,-973.104124,0.00012599,2]
[337667077,1725933046933,-973.104124,0.00012599,2]
[337667079,1725933046943,-151.0,0.00012599,2]
[337667080,1725933046954,-151.0,0.00012599,2]
[337667082,1725933046965,-151.0,0.00012599,2]
[337667084,1725933046974,-161.868264,0.00012599,2]
[337667086,1725933046984,-198.575917,0.00012599,2]
[337667088,1725933046993,-198.575917,0.00012599,2]
[337667089,1725933047003,-198.575917,0.00012599,2]
[337667090,1725933047014,-198.575917,0.00012599,2]
[337667091,1725933047033,-198.575917,0.00012599,2]
[337667092,1725933047044,-198.575917,0.00012599,2]
[337667093,1725933047053,-151.0,0.00012599,2]
[337667094,1725933047062,-151.0,0.00012599,2]
[337667095,1725933047072,-312.377615,0.00012599,2]
[337667096,1725933047082,-312.377615,0.00012599,2]
[337667097,1725933047091,-312.377615,0.00012599,2]
[337667099,1725933047177,-312.377615,0.00012599,2]
[337667101,1725933047187,-3340.02,0.00012599,2]
[337667103,1725933047197,-518.384778,0.00012599,2]
[337667104,1725933047206,-518.384778,0.00012599,2]
[337667106,1725933047215,-518.384778,0.00012599,2]
[337667108,1725933047226,-518.384778,0.00012599,2]
[337667111,1725933047237,-180.014303,0.00012599,2]
[337667113,1725933047247,-180.014303,0.00012599,2]
[337667115,1725933047256,-151.0,0.00012599,2]
[337667117,1725933047266,-151.0,0.00012599,2]
[337667118,1725933047275,-160.946631,0.00012599,2]
[337667120,1725933047285,-160.946631,0.00012599,2]
[337667122,1725933047294,-151.0,0.00012599,2]
[337667124,1725933047303,-265.94273987,0.00012599,2]
[337667126,1725933047313,-1819.0,0.000126,2]
[337667128,1725933047323,-150.0,0.00012602,2]
[337667130,1725933047332,-150.0,0.00012612,2]
[337667132,1725933047341,-150.0,0.00012615,2]
[337667134,1725933047351,-151.38241557,0.0001262,2]
[337667136,1725933047360,-150.0,0.00012623,2]
[337667138,1725933047371,-150.0,0.00012623,2]
[337667140,1725933047381,-1500.0,0.00012623,2]
[337667142,1725933047391,-1500.0,0.00012626,2]
[337667144,1725933047400,-150.0,0.00012636,2]
[337667146,1725933047410,-150.0,0.00012638,2]
[337667149,1725933047420,-500.0,0.00012644,2]
[337667150,1725933047429,-500.0,0.00012644,2]
[337667152,1725933047439,-500.0,0.00012644,2]
[337667155,1725933047449,-151.0,0.00012644,2]
[337667157,1725933047459,-1310.89,0.00012644,2]
[337667159,1725933047470,-501.78015545,0.00012644,2]
[337667161,1725933047482,-151.0,0.00012644,2]
[337667163,1725933047491,-151.0,0.00012644,2]
[337667165,1725933047500,-669.23,0.00012644,2]
[337667167,1725933047510,-594.947786,0.00012644,2]
[337667168,1725933047523,-1234.73,0.00012644,2]
[337667170,1725933047532,-500.0,0.00012644,2]
[337667172,1725933047542,-501.85801636,0.00012644,2]
[337667174,1725933047551,-502.09699187,0.00012644,2]
[337667176,1725933047561,-500.89586993,0.00012644,2]
[337667178,1725933047570,-151.0,0.00012644,2]
[337667180,1725933047580,-151.0,0.00012644,2]
[337667182,1725933047590,-233.726689,0.00012644,2]
[337667184,1725933047599,-151.0,0.00012644,2]
[337667186,1725933047609,-151.0,0.00012644,2]
[337667188,1725933047618,-973.104124,0.00012644,2]
[337667189,1725933047628,-973.104124,0.00012644,2]
[337667192,1725933047638,-151.0,0.00012644,2]
[337667193,1725933047648,-151.0,0.00012644,2]
[337667195,1725933047658,-203.000913,0.00012644,2]
[337667197,1725933047667,-203.000913,0.00012644,2]
[337667200,1725933047677,-392.055159,0.00012644,2]
[337667201,1725933047686,-392.055159,0.00012644,2]
[337667204,1725933047695,-425.24143,0.00012644,2]
[337667206,1725933047705,-425.24143,0.00012644,2]
[337667207,1725933047714,-195.963856,0.00012644,2]
[337667209,1725933047723,-195.963856,0.00012644,2]
[337667211,1725933047732,-214.451037,0.00012644,2]
[337667213,1725933047741,-214.451037,0.00012644,2]
[337667215,1725933047750,-151.0,0.00012644,2]
[337667217,1725933047759,-1079.791949,0.00012644,2]
[337667219,1725933047770,-151.0,0.00012644,2]
[337667221,1725933047780,-151.0,0.00012644,2]
[337667223,1725933047789,-512.053026,0.00012644,2]
[337667225,1725933047798,-512.053026,0.00012644,2]
[337667227,1725933047807,-151.0,0.00012644,2]
[337667229,1725933047816,-150.0,0.00012646,2]
[337667231,1725933047825,-10000.0,0.00012652,2]
[337667233,1725933047834,-150.0,0.00012656,2]
[337667235,1725933047843,-151.0,0.00012671,2]
[337667237,1725933047853,-312.377615,0.00012671,2]
[337667239,1725933047862,-312.377615,0.00012671,2]
[337667241,1725933047872,-518.384778,0.00012671,2]
[337667243,1725933047882,-518.384778,0.00012671,2]
[337667245,1725933047891,-180.014303,0.00012671,2]
[337667247,1725933047900,-180.014303,0.00012671,2]
[337667249,1725933047909,-151.0,0.00012671,2]
[337667251,1725933047918,-152.199162,0.00012671,2]
[337667253,1725933047927,-151.0,0.00012671,2]
[337667255,1725933047937,-203.000913,0.00012671,2]
[337667257,1725933047946,-203.000913,0.00012671,2]
[337667259,1725933047955,-392.055159,0.00012671,2]
[337667260,1725933047966,-392.055159,0.00012671,2]
[337667262,1725933047975,-425.24143,0.00012671,2]
[337667264,1725933047984,-425.24143,0.00012671,2]
[337667266,1725933047993,-195.963856,0.00012671,2]
[337667268,1725933048004,-195.963856,0.00012671,2]
[337667269,1725933048013,-69885.618,0.00012671,2]
[337667271,1725933048023,-214.451037,0.00012671,2]
[337667273,1725933048033,-214.451037,0.00012671,2]
[337667275,1725933048042,-151.0,0.00012671,2]
[337667277,1725933048051,-1079.791949,0.00012671,2]
[337667279,1725933048062,-151.0,0.00012671,2]
[337667281,1725933048071,-151.0,0.00012671,2]
[337667283,1725933048081,-2866.0791553,0.00012671,2]
[337667285,1725933048090,-512.053026,0.00012671,2]
[337667287,1725933048100,-512.053026,0.00012671,2]
[337667289,1725933048109,-15962.8680505,0.00012671,2]
[337667291,1725933048118,-151.0,0.00012671,2]
[337667293,1725933048127,-516.199678,0.00012671,2]
[337667295,1725933048136,-516.199678,0.00012671,2]
[337667297,1725933048146,-516.199678,0.00012671,2]
[337667299,1725933048155,-516.199678,0.00012671,2]
[337667301,1725933048164,-151.0,0.00012671,2]
[337667303,1725933048173,-151.0,0.00012671,2]
[337667305,1725933048183,-7332.320303,0.00012671,2]
[337667307,1725933048192,-7332.320303,0.00012671,2]
[337667308,1725933048201,-7332.320303,0.00012671,2]
[337667310,1725933048210,-7332.320303,0.00012671,2]
[337667312,1725933048219,-1503.33409,0.00012671,2]
[337667314,1725933048229,-151.0,0.00012671,2]
[337667316,1725933048238,-1503.33409,0.00012671,2]
[337667318,1725933048248,-151.0,0.00012671,2]
[337667320,1725933048257,-1503.33409,0.00012671,2]
[337667322,1725933048267,-1503.33409,0.00012671,2]
[337667324,1725933048276,-151.0,0.00012671,2]
[337667326,1725933048286,-151.0,0.00012671,2]
[337667328,1725933048295,-13935.0386241,0.00012671,2]
[337667330,1725933048305,-151.0,0.00012671,2]
[337667332,1725933048314,-5515.0782122,0.00012671,2]
[337667334,1725933048324,-160.946631,0.00012671,2]
[337667336,1725933048333,-160.946631,0.00012671,2]
[337667338,1725933048343,-151.0,0.00012671,2]
[337667340,1725933048352,-18996.8878341,0.00012671,2]
[337667342,1725933048362,-192.32699,0.00012671,2]
[337667344,1725933048372,-192.32699,0.00012671,2]
[337667346,1725933048381,-151.0,0.00012672,2]
[337667348,1725933048391,-151.0,0.00012672,2]
[337667350,1725933048400,-151.0,0.00012672,2]
[337667352,1725933048410,-151.0,0.00012672,2]
[337667354,1725933048419,-151.0,0.00012672,2]
[337667355,1725933048429,-151.0,0.00012672,2]
[337667357,1725933048438,-155.920277,0.00012672,2]
[337667359,1725933048448,-151.0,0.00012672,2]
[337667361,1725933048457,-151.0,0.00012672,2]
[337667363,1725933048467,-151.0,0.00012672,2]
[337667365,1725933048476,-151.0,0.00012672,2]
[337667367,1725933048485,-151.0,0.00012672,2]
[337667369,1725933048495,-151.0,0.00012672,2]
[337667371,1725933048504,-973.104124,0.00012672,2]
[337667373,1725933048515,-973.104124,0.00012672,2]
[337667375,1725933048524,-151.0,0.00012672,2]
[337667377,1725933048534,-198.575917,0.00012672,2]
[337667379,1725933048544,-198.575917,0.00012672,2]
[337667381,1725933048554,-2252.69,0.00012672,2]
[337667383,1725933048563,-4845.9056518,0.00012673,2]
[337667385,1725933048573,-14882.2347427,0.00012673,2]
[337667387,1725933048583,-817.0260176,0.00012676,2]
[337667389,1725933048592,-289.881177,0.00012678,2]
[337667391,1725933048601,-2000.0,0.00012678,2]
[337667392,1725933048610,-200.0,0.00012678,2]
[337667394,1725933048620,-151.0,0.00012678,2]
[337667396,1725933048629,-151.0,0.00012678,2]
[337667398,1725933048638,-197.813145,0.00012678,2]
[337667400,1725933048648,-2000.0,0.00012678,2]
[337667402,1725933048657,-200.0,0.00012678,2]
[337667404,1725933048667,-200.0,0.00012678,2]
[337667406,1725933048676,-200.0,0.00012678,2]
[337667408,1725933048686,-152.795388,0.00012679,2]
[337667410,1725933048695,-151.0,0.00012679,2]
[337667412,1725933048706,-151.0,0.00012679,2]
[337667414,1725933048715,-297.33756332,0.00012682,2]
[337667416,1725933048725,-11864.21313194,0.00012682,2]
[337667418,1725933048735,-151.0,0.00012685,2]
[337667420,1725933048744,-151.0,0.00012685,2]
[337667422,1725933048754,-1812.0,0.00012685,2]
[337667424,1725933048764,-151.0,0.00012691,2]
[337667426,1725933048773,-151.0,0.00012691,2]
[337667428,1725933048783,-151.0,0.00012691,2]
[337667430,1725933048794,-151.0,0.00012691,2]
[337667432,1725933048804,-151.0,0.00012691,2]
[337667434,1725933048814,-151.0,0.00012691,2]
[337667436,1725933048823,-265.94273987,0.000127,2]
[337667438,1725933048833,-227.0,0.000127,2]
[337667440,1725933048843,-180.014303,0.00012712,2]
[337667442,1725933048852,-180.014303,0.00012712,2]
[337667444,1725933048861,-151.706013,0.00012712,2]
[337667446,1725933048871,-203.000913,0.00012712,2]
[337667448,1725933048880,-203.000913,0.00012712,2]
[337667450,1725933048890,-392.055159,0.00012712,2]
[337667452,1725933048900,-392.055159,0.00012712,2]
[337667454,1725933048910,-214.451037,0.00012712,2]
[337667456,1725933048919,-214.451037,0.00012712,2]
[337667458,1725933048928,-512.053026,0.00012712,2]
[337667460,1725933048938,-512.053026,0.00012712,2]
[337667462,1725933048947,-1812.0,0.00012712,2]
[337667464,1725933048958,-991.94937599,0.0001272,2]
[337667466,1725933048969,-1812.0,0.0001274,2]
[337667468,1725933048978,-165.59580892,0.0001275,2]
[337667470,1725933048987,-1589.86986775,0.0001275,2]
[337667472,1725933048998,-151.0,0.00012756,2]
[337667473,1725933049007,-151.0,0.00012756,2]
[337667475,1725933049017,-151.0,0.00012756,2]
[337667477,1725933049027,-151.0,0.00012756,2]
[337667479,1725933049036,-151.0,0.00012756,2]
[337667481,1725933049046,-151.0,0.00012756,2]
[337667483,1725933049056,-973.104124,0.00012756,2]
[337667485,1725933049065,-973.104124,0.00012756,2]
[337667487,1725933049075,-151.0,0.00012756,2]
[337667489,1725933049085,-198.575917,0.00012756,2]
[337667491,1725933049094,-198.575917,0.00012756,2]
[337667493,1725933049103,-151.0,0.00012756,2]
[337667495,1725933049113,-312.377615,0.00012756,2]
[337667497,1725933049122,-312.377615,0.00012756,2]
[337667499,1725933049132,-518.384778,0.00012756,2]
[337667501,1725933049141,-518.384778,0.00012756,2]
[337667503,1725933049151,-157.99,0.00012767,2]
[337667505,1725933049160,-1812.0,0.00012767,2]
[337667507,1725933049169,-150.0,0.0001277,2]
[337667509,1725933049179,-151.0,0.00012782,2]
[337667511,1725933049188,-152.155779,0.00012782,2]
[337667513,1725933049198,-192.32699,0.00012782,2]
[337667515,1725933049207,-192.32699,0.00012782,2]
[337667517,1725933049217,-1812.0,0.00012795,2]
[337667519,1725933049226,-265.94273987,0.000128,2]
[337667520,1725933049235,-300.0,0.000128,2]
[337667522,1725933049245,-739.58032617,0.000128,2]
[337667524,1725933049255,-18296.85292966,0.000128,2]
[337667526,1725933049264,-550.0,0.000128,2]
[337667528,1725933049274,-151.0,0.000128,2]
[337667530,1725933049284,-425.24143,0.000128,2]
[337667532,1725933049294,-425.24143,0.000128,2]
[337667534,1725933049304,-195.963856,0.000128,2]
[337667536,1725933049314,-195.963856,0.000128,2]
[337667538,1725933049324,-151.0,0.000128,2]
[337667540,1725933049333,-1079.791949,0.000128,2]
[337667542,1725933049343,-301.17,0.000128,2]
[337667544,1725933049353,-759.63,0.000128,2]
[337667546,1725933049363,-161.67,0.000128,2]
[337667548,1725933049372,-426.08,0.000128,2]
[337667550,1725933049382,-300.67,0.000128,2]
[337667552,1725933049391,-717.88,0.000128,2]
[337667554,1725933049401,-300.4,0.000128,2]
[337667556,1725933049410,-858.6,0.000128,2]
[337667558,1725933049420,-300.34,0.000128,2]
[337667560,1725933049431,-300.57,0.000128,2]
[337667562,1725933049443,-301.38,0.000128,2]
[337667564,1725933049453,-151.575741,0.000128,2]
[337667566,1725933049463,-752.42,0.000128,2]
[337667568,1725933049472,-422.14,0.000128,2]
[337667570,1725933049482,-718.0,0.000128,2]
[337667571,1725933049491,-752.42,0.000128,2]
[337667573,1725933049501,-158.72758167,0.000128,2]
[337667575,1725933049513,-160.946631,0.000128,2]
[337667577,1725933049523,-160.946637,0.000128,2]
[337667579,1725933049533,-151.0,0.000128,2]
[337667581,1725933049543,-2000.0,0.00012805,2]
[337667583,1725933049552,-200.0,0.00012805,2]
[337667585,1725933049562,-2000.0,0.00012805,2]
[337667587,1725933049572,-200.0,0.00012805,2]
[337667589,1725933049581,-200.0,0.00012805,2]
[337667591,1725933049591,-200.0,0.00012805,2]
[337667593,1725933049601,-1812.0,0.00012822,2]
[337667595,1725933049611,-3730.56881382,0.00012825,2]
[337667597,1725933049620,-1589.86986774,0.00012825,2]
[337667599,1725933049630,-991.94937599,0.00012842,2]
[337667601,1725933049639,-384.73363066,0.00012849,2]
[337667603,1725933049649,-274.39340192,0.00012849,2]
[337667605,1725933049659,-500.0,0.00012849,2]
[337667607,1725933049667,-229.91085281,0.00012849,2]
[337667609,1725933049677,-516.46,0.00012849,2]
[337667611,1725933049686,-500.0,0.00012849,2]
[337667612,1725933049695,-500.0,0.00012849,2]
[337667614,1725933049704,-500.0,0.00012849,2]
[337667616,1725933049714,-500.0,0.00012849,2]
[337667618,1725933049723,-7639.71,0.00012849,2]
[337667620,1725933049733,-6159.35,0.00012849,2]
[337667622,1725933049742,-765.54,0.00012849,2]
[337667624,1725933049752,-8178.65,0.00012849,2]
[337667626,1725933049761,-1443.61,0.00012849,2]
[337667628,1725933049771,-500.0,0.00012849,2]
[337667630,1725933049781,-6365.88,0.00012849,2]
[337667632,1725933049791,-2755.94,0.00012849,2]
[337667634,1725933049800,-535.16,0.00012849,2]
[337667636,1725933049810,-500.0,0.00012849,2]
[337667638,1725933049820,-862.19,0.00012849,2]
[337667640,1725933049829,-500.0,0.00012849,2]
[337667642,1725933049838,-6684.3,0.00012849,2]
[337667644,1725933049848,-500.0,0.00012849,2]
[337667646,1725933049858,-500.0,0.00012849,2]
[337667648,1725933049867,-5688.18,0.00012849,2]
[337667650,1725933049877,-500.0,0.00012849,2]
[337667652,1725933049886,-653.36,0.00012849,2]
[337667654,1725933049895,-500.0,0.00012849,2]
[337667656,1725933049905,-500.0,0.00012849,2]
[337667657,1725933049914,-500.0,0.00012849,2]
[337667659,1725933049926,-500.0,0.00012849,2]
[337667661,1725933049936,-20048.04,0.00012849,2]
[337667663,1725933049945,-5709.22,0.00012849,2]
[337667665,1725933049955,-500.0,0.00012849,2]
[337667667,1725933049966,-5853.36,0.00012849,2]
[337667669,1725933049975,-8193.04,0.00012849,2]
[337667671,1725933049984,-7542.52,0.00012849,2]
[337667673,1725933049994,-500.0,0.00012849,2]
[337667675,1725933050004,-3252.87,0.00012849,2]
[337667677,1725933050013,-1369.71,0.00012849,2]
[337667679,1725933050023,-2444.13,0.00012849,2]
[337667681,1725933050033,-3176.03,0.00012849,2]
[337667683,1725933050043,-500.0,0.00012849,2]
[337667685,1725933050052,-500.0,0.00012849,2]
[337667686,1725933050061,-500.0,0.00012849,2]
[337667688,1725933050073,-500.0,0.00012849,2]
[337667690,1725933050082,-8334.36,0.00012849,2]
[337667692,1725933050091,-2700.58,0.00012849,2]
[337667694,1725933050100,-1705.54,0.00012849,2]
[337667696,1725933050110,-15049.12,0.00012849,2]
[337667698,1725933050119,-2181.21,0.00012849,2]
[337667700,1725933050129,-500.0,0.00012849,2]
[337667702,1725933050138,-591.36,0.00012849,2]
[337667704,1725933050148,-1812.0,0.00012849,2]
[337667706,1725933050157,-920.02,0.0001285,2]
[337667708,1725933050166,-4052.17,0.0001285,2]
[337667710,1725933050175,-2749.59,0.0001285,2]
[337667712,1725933050183,-731.09,0.0001285,2]
[337667714,1725933050193,-1448.89,0.0001285,2]
[337667715,1725933050202,-2608.5,0.0001285,2]
[337667716,1725933050211,-500.0,0.0001285,2]
[337667717,1725933050220,-500.0,0.0001285,2]
[337667718,1725933050229,-4270.25,0.0001285,2]
[337667719,1725933050238,-500.0,0.0001285,2]
[337667720,1725933050247,-1990.05,0.0001285,2]
[337667721,1725933050257,-500.0,0.0001285,2]
[337667722,1725933050268,-3240.82,0.0001285,2]
[337667723,1725933050280,-500.0,0.0001285,2]
[337667724,1725933050289,-2942.62,0.0001285,2]
[337667725,1725933050298,-500.0,0.0001285,2]
[337667726,1725933050307,-1305.35,0.0001285,2]
[337667727,1725933050316,-203.000913,0.0001285,2]
[337667728,1725933050325,-203.000921,0.0001285,2]
[337667729,1725933050334,-500.0,0.0001285,2]
[337667730,1725933050343,-500.0,0.0001285,2]
[337667731,1725933050353,-567.78,0.0001285,2]
[337667732,1725933050362,-500.0,0.0001285,2]
[337667734,1725933050371,-1357.31,0.0001285,2]
[337667736,1725933050381,-500.0,0.0001285,2]
[337667738,1725933050390,-392.055159,0.0001285,2]
[337667740,1725933050399,-3052.13,0.0001285,2]
[337667742,1725933050409,-392.055159,0.0001285,2]
[337667744,1725933050419,-3366.09,0.0001285,2]
[337667746,1725933050428,-500.0,0.0001285,2]
[337667748,1725933050437,-5476.49,0.0001285,2]
[337667750,1725933050446,-1737.43,0.0001285,2]
[337667752,1725933050456,-500.0,0.0001285,2]
[337667754,1725933050466,-500.0,0.0001285,2]
[337667756,1725933050475,-500.0,0.0001285,2]
[337667758,1725933050484,-500.0,0.0001285,2]
[337667760,1725933050494,-500.0,0.0001285,2]
[337667762,1725933050503,-3944.54,0.0001285,2]
[337667764,1725933050512,-500.0,0.0001285,2]
[337667766,1725933050523,-500.0,0.0001285,2]
[337667768,1725933050532,-2819.14,0.0001285,2]
[337667770,1725933050541,-500.0,0.0001285,2]
[337667772,1725933050550,-214.451037,0.0001285,2]
[337667774,1725933050560,-500.0,0.0001285,2]
[337667776,1725933050569,-4972.68,0.0001285,2]
[337667778,1725933050578,-214.451042,0.0001285,2]
[337667780,1725933050587,-500.0,0.0001285,2]
[337667782,1725933050596,-500.0,0.0001285,2]
[337667784,1725933050605,-500.0,0.0001285,2]
[337667786,1725933050614,-500.0,0.0001285,2]
[337667788,1725933050624,-2310.13,0.0001285,2]
[337667790,1725933050632,-500.0,0.0001285,2]
[337667792,1725933050641,-4950.98,0.0001285,2]
[337667793,1725933050650,-500.0,0.0001285,2]
[337667795,1725933050660,-629.64,0.0001285,2]
[337667797,1725933050669,-2445.3,0.0001285,2]
[337667799,1725933050679,-500.0,0.0001285,2]
[337667801,1725933050688,-2672.35,0.0001285,2]
[337667803,1725933050697,-500.0,0.0001285,2]
[337667805,1725933050707,-151.0,0.0001285,2]
[337667807,1725933050716,-151.0,0.0001285,2]
[337667809,1725933050725,-500.45986122,0.0001285,2]
[337667811,1725933050734,-2751.74,0.0001285,2]
[337667813,1725933050744,-151.0,0.0001285,2]
[337667815,1725933050753,-151.0,0.0001285,2]
[337667816,1725933050763,-5658.82,0.0001285,2]
[337667818,1725933050773,-500.0,0.0001285,2]
[337667820,1725933050782,-987.71,0.0001285,2]
[337667822,1725933050791,-590.08,0.0001285,2]
[337667824,1725933050800,-88430.59,0.0001285,2]
[337667826,1725933050809,-1052.36,0.0001285,2]
[337667828,1725933050819,-4231.87,0.0001285,2]
[337667830,1725933050828,-3298.37,0.0001285,2]
[337667832,1725933050838,-6255.94,0.0001285,2]
[337667834,1725933050848,-1991.3,0.0001285,2]
[337667836,1725933050857,-2260.41,0.0001285,2]
[337667838,1725933050867,-512.053026,0.0001285,2]
[337667840,1725933050877,-512.053024,0.0001285,2]
[337667842,1725933050886,-500.0,0.0001285,2]
[337667844,1725933050896,-12816.34,0.0001285,2]
[337667846,1725933050906,-12920.07,0.0001285,2]
[337667848,1725933050915,-500.0,0.0001285,2]
[337667850,1725933050924,-516.199678,0.0001285,2]
[337667852,1725933050934,-516.199678,0.0001285,2]
[337667854,1725933050943,-2644.49,0.0001285,2]
[337667856,1725933050953,-516.199678,0.0001285,2]
[337667858,1725933050967,-516.199677,0.0001285,2]
[337667860,1725933050977,-151.0,0.0001285,2]
[337667862,1725933050986,-2252.69,0.0001285,2]
[337667864,1725933050995,-151.0,0.0001285,2]
[337667866,1725933051006,-2252.69,0.0001285,2]
[337667868,1725933051017,-3526.52,0.0001285,2]
[337667870,1725933051028,-7332.320303,0.0001285,2]
[337667872,1725933051039,-500.0,0.0001285,2]
[337667874,1725933051049,-7332.320303,0.0001285,2]
[337667876,1725933051060,-7332.320303,0.0001285,2]
[337667878,1725933051070,-7332.320298,0.0001285,2]
[337667880,1725933051080,-1680.94,0.0001285,2]
[337667883,1725933051091,-14535.2,0.0001285,2]
[337667885,1725933051102,-500.0,0.0001285,2]
[337667887,1725933051112,-518.20857619,0.0001285,2]
[337667889,1725933051122,-521.87,0.0001285,2]
[337667891,1725933051132,-4305.54,0.0001285,2]
[337667893,1725933051142,-3048.36,0.0001285,2]
[337667895,1725933051153,-1503.33409,0.0001285,2]
[337667897,1725933051163,-151.0,0.0001285,2]
[337667899,1725933051172,-151.0,0.0001285,2]
[337667901,1725933051182,-1503.334083,0.0001285,2]
[337667903,1725933051192,-1310.94,0.0001285,2]
[337667905,1725933051203,-730.0,0.0001285,2]
[337667908,1725933051214,-151.0,0.0001285,2]
[337667910,1725933051225,-151.0,0.0001285,2]
[337667912,1725933051234,-5251.85,0.0001285,2]
[337667914,1725933051245,-4568.88,0.0001285,2]
[337667916,1725933051256,-500.0,0.0001285,2]
[337667918,1725933051266,-7798.11,0.0001285,2]
[337667920,1725933051276,-2405.47,0.0001285,2]
[337667922,1725933051286,-1510.67,0.0001285,2]
[337667924,1725933051296,-678.3,0.0001285,2]
[337667926,1725933051306,-830.58,0.0001285,2]
[337667928,1725933051317,-500.0,0.0001285,2]
[337667930,1725933051327,-500.0,0.0001285,2]
[337667933,1725933051338,-8598.34,0.0001285,2]
[337667935,1725933051347,-8981.1,0.0001285,2]
[337667937,1725933051358,-2069.89,0.0001285,2]
[337667939,1725933051367,-5974.96,0.0001285,2]
[337667941,1725933051377,-4207.3,0.0001285,2]
[337667943,1725933051386,-14381.57,0.0001285,2]
[337667945,1725933051396,-5166.17,0.0001285,2]
[337667947,1725933051406,-12834.07,0.0001285,2]
[337667948,1725933051416,-7712.86,0.0001285,2]
[337667950,1725933051427,-3043.14,0.0001285,2]
[337667952,1725933051436,-1143.62,0.0001285,2]
[337667954,1725933051446,-18570.12,0.0001285,2]
[337667956,1725933051456,-4769.07,0.0001285,2]
[337667958,1725933051466,-4082.67,0.0001285,2]
[337667960,1725933051476,-192.32699,0.0001285,2]
[337667963,1725933051486,-18017.13,0.0001285,2]
[337667965,1725933051496,-28448.18,0.0001285,2]
[337667967,1725933051506,-192.326993,0.0001285,2]
[337667969,1725933051516,-2799.2,0.0001285,2]
[337667971,1725933051526,-4272.35,0.0001285,2]
[337667973,1725933051535,-11541.76,0.0001285,2]
[337667975,1725933051545,-9653.54,0.0001285,2]
[337667977,1725933051554,-53230.22257067,0.0001285,2]
[337668176,1725933053683,-504.07988284,0.00012573,2]
[337668178,1725933053692,-151.0,0.00012576,2]
[337668180,1725933053702,-151.0,0.00012576,2]
[337668182,1725933053712,-151.0,0.00012577,2]
[337668185,1725933053724,-151.0,0.00012577,2]
[337668187,1725933053735,-500.0,0.00012577,2]
[337668188,1725933053744,-151.0,0.00012577,2]
[337668191,1725933053755,-151.0,0.00012578,2]
[337668193,1725933053767,-151.0,0.00012578,2]
[337668195,1725933053778,-151.0,0.00012671,2]
[337668197,1725933053788,-151.0,0.00012782,2]
[337668199,1725933053798,-19557.25511915,0.0001285,2]
[337668203,1725933053823,-151.0,0.00012576,2]
[337668205,1725933053833,-8765.40231018,0.0001285,2]
[337668207,1725933053842,-500.0,0.0001285,2]
[337668209,1725933053852,-15633.87,0.0001285,2]
[337668211,1725933053861,-619.58,0.0001285,2]
[337668213,1725933053871,-5523.59,0.0001285,2]
[337668215,1725933053881,-2583.17,0.0001285,2]
[337668217,1725933053890,-151.0,0.0001285,2]
[337668219,1725933053900,-151.0,0.00012851,2]
[337668221,1725933053910,-151.0,0.00012851,2]